Cogmind - Beta 14 @@@ ROGUE MODE // 2024.10.13 @ 13:08:14 Player: nostromo Result: Destroyed by Y-54 Guardian with Flak Gun Performance ------------- Evolutions (3) 1500 Regions Visited (5) 1000 Robots Destroyed (64) 320 Value Destroyed (2008) 2008 Prototype IDs (0) 0 Alien Tech Used (0) 0 Bonus (0) 0 TOTAL SCORE: 4828 Bonus ------- None Cogmind --------- Core Integrity 0/700 Matter 275/300 Energy 98/100 System Corruption 2% Temperature Cool (18) Movement Walking (410) Ox4 Location -7/Storage Parts ------- > --- POWER (2) -------- (None) > --- PROPULSION (4) --- Titanium Leg > --- UTILITY (5) ------ Huge Storage Unit Weight Redist. System Signal Interpreter Medium Armor Plating > --- WEAPON (2) ------- Heavy Ion Cannon Spear > --- INVENTORY (25) --- Improved Sensor Array Improved Sensor Array Terrain Scan Processor Improved Terrain Scan Processor Transport Network Coupler Improved Targeting Computer Recoil Stabilizer Recoil Stabilizer Weapon Cycler Reaction Control System Improved Utility Shielding Hacking Suite Component Analysis Suite Component Analysis Suite Corruption Screen Lightning Gun Gatling Laser Heavy Ion Cannon Flak Gun Peak State ------------ > --- POWER ------------ Nuclear Core Light Nuclear Core > --- PROPULSION ------- Carbon-fiber Leg Titanium Leg Titanium Leg > --- UTILITY ---------- Improved Cooling System Huge Storage Unit Trap Scanner Signal Interpreter Seismic Detector > --- WEAPON ----------- Gatling Laser Spear > --- INVENTORY -------- Weight Redist. System Improved Sensor Array Improved Sensor Array Terrain Scan Processor Improved Terrain Scan Processor Transport Network Coupler Improved Targeting Computer Recoil Stabilizer Recoil Stabilizer Weapon Cycler Reaction Control System Improved Utility Shielding Medium Armor Plating Hacking Suite Component Analysis Suite Component Analysis Suite Corruption Screen Lightning Gun Gatling Laser Heavy Ion Cannon Heavy Ion Cannon Flak Gun [Rating: 39] Favorites ----------- Power Light Nuclear Core Engine Light Ion Engine Power Core Light Nuclear Core Propulsion Armored Treads Treads Armored Treads Leg Titanium Leg Wheel Wheel Flight Unit Flight Unit Utility Huge Storage Unit Device Seismic Detector Storage Huge Storage Unit Processor Signal Interpreter Protection Medium Armor Plating Weapon Gatling Laser Energy Gun Gatling Laser Energy Cannon Heavy Ion Cannon Ballistic Gun Heavy Assault Rifle Piercing Weapon Spear Build | -11 -10 -9 -8 -7 -7 ------- Run | Yrd Mat Mat Mat Fac Sto Slots Evolved 6 | . . 2 2 2 . Power 1 | . . . 1 . . Propulsion 2 | . . . . 2 . Utility 3 | . . 2 1 . . Weapon . | . . . . . . Parts Attached 52 | 6 4 9 6 21 6 Power 10 | 1 . 2 2 3 2 Engine 4 | 1 . . 1 2 . Core 6 | . . 2 1 1 2 Reactor . | . . . . . . Propulsion 20 | 2 2 3 1 12 . Treads 13 | 2 . 3 1 7 . Leg 5 | . . . . 5 . Wheel 1 | . 1 . . . . Hover . | . . . . . . Flight 1 | . 1 . . . . Utility 11 | 1 1 2 2 2 3 Device 6 | . . 1 1 2 2 Storage 2 | 1 1 . . . . Processor 2 | . . 1 1 . . Hackware . | . . . . . . Protection 1 | . . . . . 1 Artifact . | . . . . . . Weapon 11 | 2 1 2 1 4 1 Energy Gun 7 | 2 . 1 1 3 . Energy Cannon 1 | . . . . . 1 Ballistic Gun 2 | . 1 1 . . . Ballistic Cannon . | . . . . . . Launcher . | . . . . . . Special Weapon . | . . . . . . Impact Weapon . | . . . . . . Slashing Weapon . | . . . . . . Piercing Weapon 1 | . . . . 1 . Special Melee Weapon . | . . . . . . Unidentified Prototypes . | . . . . . . Parts Lost 27 | . 2 2 6 8 9 Power 8 | . . 1 2 2 3 Propulsion 8 | . 1 . 2 3 2 Utility 5 | . . . . 2 3 Weapon 6 | . 1 1 2 1 1 Highest Loss Streak 6 | . 1 1 3 3 6 To Critical Strikes . | . . . . . . Average Slot Usage (%) 85 | . 71 81 88 91 77 Engine 4 | . 14 1 . 8 . Core 6 | . . 9 11 2 6 Treads 17 | . 8 18 15 24 . Leg 3 | . . . . 2 22 Device 14 | . . 10 18 17 20 Storage 8 | . 14 11 9 7 7 Processor 10 | . . 7 18 11 7 Energy Gun 13 | . 16 14 15 13 4 Ballistic Gun 2 | . 11 7 . . . Piercing Weapon 1 | . . . . 1 7 Peak Build Rating 39 | 6 6 19 30 38 39 Average Rating 24 | 4 5 15 23 33 33 On Entrance 14 | . 6 5 19 22 33 Naked Turns . | . . . . . . Heaviest Build 103 | 13 87 89 98 99 103 Greatest Support 86 | 40 40 46 46 86 49 Greatest Overweight (x) 28 | . 28 9 4 9 5 Average Overweight (x) 1 | . 6 1 1 1 1 Largest Inventory Capacity 25 | 8 25 25 25 25 25 Average Capacity 24 | 6 19 25 25 25 25 Most Carried 25 | 4 3 17 25 25 23 Average Carried 16 | 1 1 8 18 22 21 Final Capacity 25 | 8 25 25 25 25 25 Final Carried 24 | 1 2 17 24 24 19 Class Distribution -------------------- 100% | Mutant Dominant Class ---------------- Mutant | -10/Materials Mutant | -9/Materials Mutant | -8/Materials Mutant | -7/Factory Mutant | -7/Storage Resources | -11 -10 -9 -8 -7 -7 ----------- Run | Yrd Mat Mat Mat Fac Sto Matter Collected 916 | 240 58 290 50 258 20 Remotely . | . . . . . . Salvage Created 2463 | . 193 790 235 836 409 Parts 131 | . 19 46 11 35 20 Haulers Intercepted 2 | . . 1 1 . . Recyclers Shooed 2 | . . 2 . . . Parts Field Recycled . | . . . . . . Retrieved Matter . | . . . . . . Parts Self-Destructed . | . . . . . . Prevented . | . . . . . . Kills | -11 -10 -9 -8 -7 -7 ------- Run | Yrd Mat Mat Mat Fac Sto Combat Hostiles Destroyed 49 | . 5 16 4 18 6 Melee 4 | . . . . . 4 Guns 45 | . 5 16 4 18 2 Classes Destroyed 11 | . 4 5 . 2 . Worker 5 | . 3 2 . . . Builder 3 | . 1 . . 1 1 Hauler 2 | . . 1 1 . . Recycler 4 | . . 1 . 2 1 Watcher 1 | . . 1 . . . Swarmer 13 | . 3 4 . 6 . Grunt 19 | . 2 7 2 6 2 Duelist 1 | . . 1 . . . Sentry 10 | . . 4 2 . 4 Hunter 2 | . . . . 2 . Programmer 4 | . . . . 4 . Best Kill Streak 6 | . 4 6 1 4 3 Combat Bots Only 5 | . 3 5 1 4 1 Max Kills in Single Turn 1 | . 1 1 1 1 1 Gunslinging . | . . . . . . Exploded . | . . . . . . Melee 1 | . . . . . 1 Uniques/NPCs Destroyed . | . . . . . . Combat | -11 -10 -9 -8 -7 -7 -------- Run | Yrd Mat Mat Mat Fac Sto Hostile Shots Fired 613 | . 60 102 54 169 228 Missed 175 | . 14 27 17 39 78 Damage Taken 5383 | . 395 968 581 2198 1241 Core 1055 | . 76 174 103 379 323 Absorbed by Shields . | . . . . . . Core Remaining (%) 76 | 100 69 56 81 . . Volleys Fired 181 | . 31 58 34 44 14 Largest 2 | . 2 2 2 2 1 Hottest 160 | . 80 96 136 160 80 Shots Fired 306 | . 55 115 54 66 16 Gun 303 | . 55 115 54 66 13 Cannon 3 | . . . . . 3 Launcher . | . . . . . . Special . | . . . . . . Kinetic 63 | . 19 44 . . . Thermal 236 | . 29 71 54 66 16 Explosive . | . . . . . . Electromagnetic 7 | . 7 . . . . Robot Hit Streak 16 | . 11 16 10 8 6 Robot Miss Streak 5 | . 4 5 3 4 4 Penetration Max . | . . . . . . Secondary Targets 3 | . . 2 . 1 . Max Gunslinging Chain 1 | . . 1 . 1 . Shots Hit Robots 233 | . 32 82 37 56 26 Core Hits 136 | . 14 35 17 51 19 Critical Kills . | . . . . . . Critical Parts Destroyed . | . . . . . . Critical Strikes 8 | . . 3 4 . 1 Burn 7 | . . 3 4 . . Impale 1 | . . . . . 1 Melee Attacks 16 | . . . . . 16 Impact . | . . . . . . Slashing . | . . . . . . Piercing 16 | . . . . . 16 Sneak Attacks . | . . . . . . Combat Hostiles . | . . . . . . Follow-up Attacks . | . . . . . . Damage Inflicted 4002 | . 331 1056 585 1296 734 Guns 3351 | . 331 1056 585 1130 249 Cannons 81 | . . . . . 81 Explosions 247 | . . . . 148 99 Melee 305 | . . . . . 305 Ramming 18 | . . . . 18 . Kinetic 474 | . 106 368 . . . Thermal 2937 | . 204 688 585 1130 330 Explosive 247 | . . . . 148 99 Electromagnetic 21 | . 21 . . . . Impact . | . . . . . . Slashing . | . . . . . . Piercing 305 | . . . . . 305 Highest Corruption 2 | . . 2 . 2 2 Average Corruption 1 | . . 2 . 1 2 Corruption Purged . | . . . . . . Corruption Blocked . | . . . . . . Effects 24 | . . 9 . 6 9 Message Errors 8 | . . 2 . 2 4 Matter Fused 4 | . . 2 . 1 1 Heat Flow Errors 3 | . . 2 . 1 . Energy Discharges 3 | . . 2 . . 1 Parts Rejected 1 | . . . . 1 . Parts Fused 1 | . . . . . 1 Data Loss (major) 1 | . . 1 . . . Misfires 3 | . . . . 1 2 Overload Shots . | . . . . . . Overflow Damage 37 | . . . . 37 . Projectiles . | . . . . . . Explosions 37 | . . . . 37 . Melee . | . . . . . . Knockbacks . | . . . . . . Impact . | . . . . . . Kinetic . | . . . . . . Secondary . | . . . . . . Self-Inflicted Damage 146 | . . . . 86 60 Shots 2 | . . . . 1 1 Rammed 1 | . . 1 . . . Targets Rammed 2 | . . 1 . 1 . Kicked . | . . . . . . Crushed 1 | . . . . 1 . Highest Temperature 471 | . 90 395 427 471 78 Average Temperature 104 | . 34 120 123 115 33 Received Heat Transfer 1269 | . 54 240 342 252 381 Effects 23 | . . 5 10 8 . Shutdowns 7 | . . 2 3 2 . Interference 9 | . . . 6 3 . Matter Decay 3 | . . 1 . 2 . Short Circuit 1 | . . . . 1 . Damage (minor) 3 | . . 2 1 . . Siege Activations . | . . . . . . Robots Corrupted . | . . . . . . Combat Hostiles . | . . . . . . Parts Fried . | . . . . . . Impact Corruptions . | . . . . . . Robots Melted . | . . . . . . Combat Hostiles . | . . . . . . Parts Melted 17 | . . 3 3 11 . Heat Transferred 7213 | . 475 1817 1735 2500 686 Parts Sabotaged . | . . . . . . Parts Stolen . | . . . . . . Parts Stripped . | . . . . . . Power Chain Reactions . | . . . . . . Alert | -11 -10 -9 -8 -7 -7 ------- Run | Yrd Mat Mat Mat Fac Sto Peak Influence 339 | . 165 339 140 259 255 Initial 72 | . . 5 70 4 72 Average 109 | . 100 169 41 102 155 Maximum Alert Level 1 | . . 1 . 1 1 Low Security (%) 80 | 100 100 56 100 84 55 Level 1 19 | . . 43 . 15 44 Level 2 . | . . . . . . Level 3 . | . . . . . . Level 4 . | . . . . . . Level 5 . | . . . . . . High Security . | . . . . . . Max Security . | . . . . . . Squads Dispatched 12 | . 2 2 1 5 2 Investigation . | . . . . . . Extermination 5 | . . . . 4 1 Reinforcement 7 | . 2 2 1 1 1 Assault . | . . . . . . Garrison . | . . . . . . Intercept . | . . . . . . Searches Triggered . | . . . . . . Construction Impeded . | . . . . . . Haulers Reinforced . | . . . . . . Active Scanning Responses . | . . . . . . Cargo Convoy Interrupts . | . . . . . . Stealth | -11 -10 -9 -8 -7 -7 --------- Run | Yrd Mat Mat Mat Fac Sto Distress Signals 7 | . . 2 2 1 2 Communications Jammed . | . . . . . . Distress Signals . | . . . . . . Times Spotted 93 | . 9 25 15 33 11 Peak Tracking Total 8 | . 3 4 4 8 6 Tactical Retreats 12 | . . 2 3 7 . Traps | -11 -10 -9 -8 -7 -7 ------- Run | Yrd Mat Mat Mat Fac Sto Traps Triggered 8 | . . 2 . 6 . Indirectly . | . . . . . . Trap Hack Attempts . | . . . . . . Triggered . | . . . . . . Disarmed . | . . . . . . Reprogrammed . | . . . . . . Reused . | . . . . . . Traps Extracted . | . . . . . . Installed . | . . . . . . Triggered . | . . . . . . Machines | -11 -10 -9 -8 -7 -7 ---------- Run | Yrd Mat Mat Mat Fac Sto Machines Disabled 5 | . 1 . . 2 2 Max in Single Turn 2 | . 1 . . 2 2 Machines Repaired . | . . . . . . Machines Dismantled . | . . . . . . Machines Sabotaged . | . . . . . . Overloaded Fab Kills . | . . . . . . Hacking | -11 -10 -9 -8 -7 -7 --------- Run | Yrd Mat Mat Mat Fac Sto Machines Accessed 5 | . . 1 2 1 1 Terminals 4 | . . 1 1 1 1 Fabricators . | . . . . . . Repair Stations . | . . . . . . Recycling Units . | . . . . . . Scanalyzers 1 | . . . 1 . . Garrison Access . | . . . . . . Total Hacks 8 | . . 1 4 1 2 Successful 7 | . . 1 4 1 1 Failed 1 | . . . . . 1 Catastrophic . | . . . . . . Database Lockouts . | . . . . . . Manual 3 | . . . . 3 . Terminals 5 | . . 1 1 1 2 Fabricators . | . . . . . . Repair Stations . | . . . . . . Recycling Units . | . . . . . . Scanalyzers 3 | . . . 3 . . Garrison Access . | . . . . . . Terminal Hacks 4 | . . 1 1 1 1 Record 1 | . . . . . 1 Open DSF 1 | . . . . 1 . Alert Level 1 | . . . 1 . . Zone Layout 1 | . . 1 . . . Fabricator Hacks . | . . . . . . Repair Station Hacks . | . . . . . . Recycling Unit Hacks . | . . . . . . Scanalyzer 3 | . . . 3 . . Insert Component 1 | . . . 1 . . Analyze 2 | . . . 2 . . Garrison Access Hacks . | . . . . . . Unauthorized Hacks . | . . . . . . Terminals . | . . . . . . Fabricators . | . . . . . . Repair Stations . | . . . . . . Recycling Units . | . . . . . . Scanalyzers . | . . . . . . Garrison Access . | . . . . . . Data Cores Recovered . | . . . . . . Used . | . . . . . . Hacking Detections 2 | . . . 1 1 . Full Trace Events 1 | . . . 1 . . Feedback Events . | . . . . . . Feedback Blocked . | . . . . . . Robot Schematics Acquired . | . . . . . . Robots Built . | . . . . . . Authchips . | . . . . . . Time . | . . . . . . Total Robot Build Rating . | . . . . . . Part Schematics Acquired 1 | . . . 1 . . Parts Built . | . . . . . . Authchips . | . . . . . . Time . | . . . . . . Total Part Build Rating . | . . . . . . Parts Repaired . | . . . . . . Time . | . . . . . . Parts Recycled . | . . . . . . Recycled Matter . | . . . . . . Retrieved Matter . | . . . . . . Retrieved Components . | . . . . . . Parts Scanalyzed 1 | . . . 1 . . Part Schematics Acquired 1 | . . . 1 . . Parts Damaged . | . . . . . . Bothacking | -11 -10 -9 -8 -7 -7 ------------ Run | Yrd Mat Mat Mat Fac Sto Used RIF Installer . | . . . . . . Robots Hacked . | . . . . . . Non-combat . | . . . . . . Combat . | . . . . . . Robot Hacks Applied . | . . . . . . Relay Couplers Released . | . . . . . . Fabnet Peak Effective % . | . . . . . . Robots Rewired . | . . . . . . Allies Hacked . | . . . . . . Hacks Repelled . | . . . . . . Allies | -11 -10 -9 -8 -7 -7 -------- Run | Yrd Mat Mat Mat Fac Sto Total Allies . | . . . . . . Largest Group . | . . . . . . Highest-Rated Group . | . . . . . . Highest-Rated Ally . | . . . . . . Total Orders . | . . . . . . Ally Attacks . | . . . . . . Total Damage . | . . . . . . Kills . | . . . . . . Allies Corrupted . | . . . . . . Allies Melted . | . . . . . . Intel | -11 -10 -9 -8 -7 -7 ------- Run | Yrd Mat Mat Mat Fac Sto Robot Analysis Total . | . . . . . . Derelict Logs Recovered . | . . . . . . Drone Launches . | . . . . . . Drone Recoveries . | . . . . . . Exploration | -11 -10 -9 -8 -7 -7 ------------- Run | Yrd Mat Mat Mat Fac Sto Turns Passed 5459 | 74 474 1246 1103 2051 511 Spaces Moved 1752 | 49 133 419 290 715 146 Core 25 | 15 5 5 . . . Treads 1311 | 34 45 335 290 607 . Legs 254 | . . . . 108 146 Wheels 159 | . 80 79 . . . Hover . | . . . . . . Flight 3 | . 3 . . . . Fastest Speed 50 | 50 160 155 250 196 196 Average Speed 254 | 126 267 236 316 250 235 Slowest Speed 1720 | 160 1720 500 490 750 480 Overloaded Moves . | . . . . . . Propulsion Burnouts . | . . . . . . Robots Hopped . | . . . . . . Cave-ins Triggered . | . . . . . . Exploration Rate (%) 23 | 4 30 31 25 26 27 Regions Visited 5 Branch Regions 1 Pre-discovered Areas . | . . . . . . Known Exits Taken 2 | . . 1 . 1 . Unknown Exits Taken 3 | 1 1 . 1 . . Scrap Searched . | . . . . . . Spaces Dug 1 | . . . . . 1 Terrain Destroyed 35 | . . . . 23 12 Melee 1 | . . . . . 1 Projectile . | . . . . . . AOE 34 | . . . . 23 11 Terrain Rammed . | . . . . . . Walls Destroyed . | . . . . . . Machines Disabled . | . . . . . . Actions | -11 -10 -9 -8 -7 -7 --------- Run | Yrd Mat Mat Mat Fac Sto Total 2414 | 61 202 562 422 896 271 Wait 326 | . 28 45 80 85 88 Move 1747 | 48 132 418 289 714 146 Hop . | . . . . . . Pick Up 68 | 7 4 26 12 18 1 Fast Attach 3 | . . . 2 1 . Attach 46 | 6 4 9 4 17 6 Detach 1 | . 1 . . . . Swap 3 | . . . . 3 . Drop 15 | . 2 5 1 7 . Fire 181 | . 31 58 34 44 14 Melee 16 | . . . . . 16 Ram . | . . . . . . Kick . | . . . . . . Crush 2 | . . 1 . 1 . Escape Stasis 6 | . . . . 6 . Rewire . | . . . . . . Trap . | . . . . . . Miscellaneous . | . . . . . . Route ------- -11/Scrapyard -10/Materials -9/Materials (discovered 2 exits: *Mat / *Min) -8/Materials -7/Factory -7/Storage History --------- Turn | Location | Event 3 | -11/Scrapyard | Discovered new exit (range 16) 75 | -11/Scrapyard | Entered Materials 314 | -10/Materials | Build established: Mutant 535 | -10/Materials | Discovered new exit (range 8) 549 | -10/Materials | Entered another Materials area 549 | -9/Materials | Evolved 2 slots: Utility x2 1611 | -9/Materials | Discovered new exit (range 10) 1696 | -9/Materials | Identified exit to Mines 1706 | -9/Materials | Discovered new exit (range 14) 1736 | -9/Materials | Identified exit to Materials 1795 | -9/Materials | Entered another Materials area 1795 | -8/Materials | Evolved 2 slots: Power x1, Utility x1 2853 | -8/Materials | Discovered new exit (range 5) 2898 | -8/Materials | Entered Factory 2898 | -7/Factory | Evolved 2 slots: Propulsion x2 2927 | -7/Factory | Lost 3 parts (1p1n1w) 4217 | -7/Factory | Lost 3 parts (1p2n) 4698 | -7/Factory | Core integrity fell below 50% 4937 | -7/Factory | Discovered new exit (range 4) 4943 | -7/Factory | Identified exit to Storage 4949 | -7/Factory | Entered Storage 5398 | -7/Storage | Core integrity fell below 20% 5460 | -7/Storage | Destroyed by Y-54 Guardian with Flak Gun Last Messages --------------- O-16 Technician sends out distress signal. O-16 Technician: "IFF HANDSHAKE FAILED. SECURING TERMINAL." ALERT: Hostiles spotted, dispatching reinforcements to Terminal S012. Imp. Cooling System destroyed. Trap Scanner destroyed. K-01 Serf cleans the Terminal. Seismic Detector destroyed. U-05 Engineer builds a Wall. K-01 Serf cleans the Terminal. U>/6XH7E82JWAIAVBYRTZDDNDCMKCX0QNA Carbon-fiber Leg destroyed. Titanium Leg destroyed. U-05 Engineer builds a Door. F0,HLY9D>SASEGDQQERZKJHF ALERT: Rogue bot located, Programmers report to Storage Zone 6X. Lgt. Nuclear Core destroyed. Y-54 Guardian destroyed. Map ----- +----------------------------------------------------+ | ?????????????????????????????????????????????????? | | ?????????????????????????????????????????????????? | | ?????????????????????????????????????????????????? | | ???????????????????#####################?????????? | | ???????????????????#= #![ #?????????? | | ?????#####?????????# """"" #![ #?????????? | | ?????# #?????????# """"" #[] #?????????? | | ?????# #????????## """"" # #?????????? | | ?????# #????????# " ##????????? | | ?????# #???#######% " #????????? | | ?????# #???#"""" # "" ##????????? | | ?????/ #???#""R""# = %% #?????##??? | | ?????# #####"" ""#####+######## # ### / " | | ?????# % % #??????? | | ?????# % #??????? | | ?????# #??????? | | ?????## ######/######" "#############+###+#??????? | | ??????# #??? ??????#"Y"#????????????????????????? | | ??????# #??"??"? ???#"""#????????????????????????? | | ??????# #?????" ???#####????????????????????????? | | ??????# #?????" ????????????????????????????????? | | ??????# #?????" ???????###??????????????????????? | | ??????#[#?????" ???????#T##?????????????????????? | | ??????#=#???""" ???????" #?????????????????????? | | ??????#%#???? ???????" #?????????????????????? | | ??#####+#######+###?????#@!#?????????????????????? | | ??# # ########Y############??????????? | | ??# # T" %g #??????????? | | ??# """""" + " #??????????? | | ??#??????" # ^ ???????? | | ??# ?????" # ##############/####### ????????? | | ??# """""" ## ##?????????????? ??????????????? | | ??# ## #???????????????? ????????????? | | ??# ## #?????????????????? ???????????? | | ??############ #??????????????????? #??????????? | | ?????????????# #???????????????????????????????? | | ?????????????# #???????????????????????????????? | | ?????????????# #???????????????????????????????? | | ?????????????# T???????????????????????????????? | | ?????????????# #???????????????????????????????? | | ?????????????# #???????????????????????????????? | | ????????????? ???????????????????????????????? | | ????????????? ???????????????????????????????? | | ????????????? ???????????????????????????????? | | ????????????? ???????????????????????????????? | | ????????????? #??????????????????????????????? | | ??????????????#+#????????????????????????????????? | | ?????????????????????????????????????????????????? | | ?????????????????????????????????????????????????? | | ?????????????????????????????????????????????????? | +----------------------------------------------------+ Best States ------------- Heat Dissipation 61 Energy Generation 23 Energy Capacity 300 Matter Stores 300 Matter Capacity 300 Sight Range 16 Terrain Scan Density 10 Additional Mass Support 6 Armor Coverage 225 Evasion (%) 50 Recoil Reduction 4 Item Schematics ----------------- Imp. Targeting Computer | -8/Materials | Scanalyzed Robot Schematics ------------------ None Fabricated ------------ Nothing Alien Tech Used ----------------- None Achievements -------------- None Challenges ------------ None Game ------ Seed DecoderHeavyThermoblaster Manual? 0 Play Time 00:43:10 Cumulative 4.3 hours Start 2024.10.13 @ 12:27:00 End 2024.10.13 @ 13:08:14 Sessions 1 Manual Loads 0 Difficulty Rogue Special Mode None Game No. 8 Rogue 8 Adventurer 0 Explorer 0 Win Type - Total 0 Types 0/0/0/0/0/0/0/0/0 Lore% 2 Gallery% 9 Achievement% 6 Wizard Run 0 Options --------- Layout 1 ASCII 0 Keyboard 0 Movement Mouse Keybinds 0 Fullscreen 1 Font 32/SmallcapsGlow Map View 50x40 Zoom Use 0% Tactical HUD 0 Map Filters NONE Filters NONE Steam 1 RUN: 618f0549-a563-47fe-aebe-ebe9ba516067